fUSD/lending_fUSD_20240627
["ID","MTS","AMOUNT","RATE_DAILY","PERIOD"]
[330500554,1719520231879,-10075.35601306,0.0001399,2]
[330500555,1719520231888,-373.2,0.00017483,2]
[330500556,1719520231898,-155.0,0.00018899,2]
[330500557,1719520231908,-264.40040348,0.00018899,2]
[330500558,1719520231917,-235.21210657,0.00018899,2]
[330500559,1719520231928,-363.58934432,0.00018899,2]
[330500560,1719520231937,-155.0,0.00018899,2]
[330500561,1719520231947,-155.0,0.00018899,2]
[330500562,1719520231957,-308.03328619,0.00019069,2]
[330500563,1719520231968,-226.97665617,0.00019069,2]
[330500564,1719520231978,-499.99,0.00019229,2]
[330500565,1719520231988,-347.47664097,0.00019229,2]
[330500566,1719520231998,-155.0,0.00019229,2]
[330500567,1719520232008,-482.87871356,0.00019229,2]
[330500568,1719520232017,-250.0,0.00019241,2]
[330500569,1719520232027,-168.59,0.00019315,2]
[330500570,1719520232036,-996.5,0.00019334,2]
[330500571,1719520232045,-250.0,0.0001938,2]
[330500572,1719520232054,-250.0,0.00019415,2]
[330500573,1719520232064,-2445.45,0.00019511,2]
[330500574,1719520232074,-575.07,0.0001959,2]
[330500575,1719520232083,-177.2,0.0001963,2]
[330500576,1719520232092,-373.2,0.00019747,2]
[330500577,1719520232101,-202.05047868,0.00019899,2]
[330500578,1719520232111,-14808.177,0.00020044,2]
[330500579,1719520232120,-704.11855881,0.00020263,3]
[330500580,1719520232129,-12294.66095755,0.00020363,2]
[330500581,1719520232138,-166.35,0.00020364,2]
[330500582,1719520232147,-168.47,0.00020541,2]
[330500583,1719520232157,-500.0,0.00020541,2]
[330500584,1719520232167,-1500.0,0.00020541,5]
[330500585,1719520232177,-23890.0,0.00020541,2]
[330500586,1719520232187,-2318.96,0.00020541,2]
[330500587,1719520232196,-1250.0,0.00021,2]
[330500588,1719520232205,-5803.0,0.00021121,2]
[330500589,1719520232214,-5171.0,0.00021121,2]
[330500590,1719520232223,-1197.0,0.00021121,2]
[330500591,1719520232232,-4529.4146,0.00021522,2]
[330500592,1719520232241,-220.18,0.00021616,2]
[330500593,1719520232251,-403.86981609,0.00021622,2]
[330500594,1719520232260,-9036.2442,0.00021622,2]
[330500595,1719520232269,-1000.0,0.00021622,2]
[330500596,1719520232279,-375.78,0.00021644,2]
[330500597,1719520232288,-46522.7524714,0.00021712,3]
[330500598,1719520232297,-4321.8883,0.00021722,2]
[330500599,1719520232306,-391.7049,0.00021722,2]
[330500600,1719520232315,-245000.0,0.00021722,2]
[330500601,1719520232325,-281.1116,0.00021722,2]
[330500602,1719520232334,-39380.1465,0.00021722,2]
[330500603,1719520232343,-996.5,0.00021751,2]
[330500604,1719520232353,-403.86981609,0.00021763,2]
[330500606,1719520232362,-403.86981609,0.00021904,2]
[330500608,1719520232371,-191.84,0.00021918,2]
[330500610,1719520232380,-457.70275438,0.00022,2]
[330500612,1719520232389,-152.32275894,0.00022002,2]
[330500613,1719520232398,-373.2,0.0002201,2]
[330500614,1719520232408,-2736.63249832,0.00022029,3]
[330500615,1719520232417,-166.18841664,0.00022039,2]
[330500616,1719520232427,-403.86981609,0.00022045,2]
[330500617,1719520232436,-155.73559578,0.00022074,2]
[330500618,1719520232445,-500.0,0.0002212,2]
[330500619,1719520232454,-403.86981609,0.00022186,2]
[330500620,1719520232463,-687.74363567,0.00022223,2]
[330500621,1719520232472,-154.77869222,0.00022235,2]
[330500622,1719520232481,-233.23330517,0.00022253,2]
[330500623,1719520232491,-466.50158669,0.00022255,2]
[330500624,1719520232500,-233.23330517,0.00022282,2]
[330500625,1719520232509,-395.72592447,0.00022303,2]
[330500626,1719520232518,-2736.63249832,0.00022304,3]
[330500627,1719520232527,-150.67314753,0.00022305,2]
[330500628,1719520232536,-1369.71801363,0.00022314,2]
[330500629,1719520232545,-1369.71801363,0.00022325,2]
[330500630,1719520232555,-403.86981609,0.00022326,2]
[330500631,1719520232563,-154.77869222,0.00022375,2]
[330500632,1719520232573,-5473.26499664,0.0002238,3]
[330500633,1719520232582,-7500.0,0.0002239,2]
[330500634,1719520232591,-388.77517772,0.00022393,2]
[330500635,1719520232600,-169.84796899,0.000224,2]
[330500636,1719520232609,-187.68301248,0.000224,2]
[330500637,1719520232618,-289.45083347,0.000224,2]
[330500638,1719520232628,-154.77869222,0.0002242,2]
[330500639,1719520232637,-166.66666666,0.00022433,2]
[330500640,1719520232646,-2736.63249832,0.00022435,3]
[330500641,1719520232656,-289.4508334,0.00022445,2]
[330500642,1719520232665,-3039.69279988,0.00022448,2]
[330500643,1719520232676,-403.86981609,0.00022467,2]
[330500644,1719520232685,-49259.3849698,0.0002248,3]
[330500645,1719520232699,-5617.32585248,0.0002248,3]
[330500646,1719520232708,-1404.33146312,0.00022483,3]
[330500647,1719520232717,-289.4508334,0.00022489,2]
[330500648,1719520232726,-28086.6292624,0.0002249,3]
[330500649,1719520232736,-11681.0,0.00022493,2]
[330500650,1719520232745,-150.47367995,0.00022497,2]
[330500651,1719520232754,-1000.0,0.00022499,2]
[330500652,1719520232765,-378086.4678871,0.000225,4]
[330500653,1719520232784,-465.83281295,0.000225,4]
[330500654,1719520233262,-297800.5507568,0.000225,4]
[330500655,1719520233274,-877.71244657,0.000225,4]
[330500656,1719520233306,-1619.62226656,0.000225,4]
[330500657,1719520233317,-674.44896287,0.000225,4]
[330500658,1719520233395,-670.92,0.000225,4]
[330500659,1719520233407,-622.28755343,0.000225,4]
[330500660,1719520233419,-383.59999996,0.000225,4]
[330500661,1719520233432,-5151.0,0.000225,4]
[330500662,1719520233455,-2077.736495,0.000225,4]
[330500663,1719520233467,-7987.01424638,0.000225,4]
[330500687,1719520238560,-155.0,0.00018864,2]
[330500689,1719520238571,-226.97665617,0.00019069,2]
[330500691,1719520238581,-484.15891232,0.000225,4]
[330500695,1719520238602,-559.7,0.000225,4]
[330500699,1719520238636,-68725.11897184,0.000225,4]
[330500701,1719520238648,-25237.46888027,0.000225,4]
[330500704,1719520238665,-277.0,0.000225,4]
[330500707,1719520238678,-1374.02085495,0.000225,4]
[330500839,1719520240037,-1057.25402731,0.000225,4]
[330500840,1719520240052,-1047.1115,0.000225,4]
[330500841,1719520240126,-168884.13141617,0.000225,4]
[330500842,1719520240137,-166059.92839665,0.000225,4]
[330500843,1719520240151,-98341.83961869,0.000225,4]
[330500845,1719520240174,-17609.88845552,0.000225,4]
[330500853,1719520240255,-288.40183904,0.000225,4]
[330500854,1719520240269,-902.45665666,0.000225,4]
[330500856,1719520240310,-1276.56382338,0.000225,4]
[330500929,1719520242956,-1276.42705946,0.000225,4]
[330500930,1719520243174,-500.0,0.00021622,2]
[330500931,1719520243186,-594944.1141506,0.000225,4]
[330500932,1719520243195,-151.0,0.000225,7]
[330500933,1719520243205,-151.0,0.000225,7]
[330500934,1719520243215,-152.285748,0.000225,7]
[330500935,1719520243225,-283.5,0.000225,7]
[330500936,1719520243235,-283.5,0.000225,7]
[330500937,1719520243245,-151.530743,0.000225,7]
[330500938,1719520243255,-151.0,0.000225,7]
[330500939,1719520243266,-151.309664,0.000225,7]
[330500940,1719520243276,-151.0,0.000225,7]
[330500941,1719520243286,-151.0,0.000225,7]
[330500942,1719520243296,-151.0,0.000225,7]
[330500943,1719520243306,-151.0,0.000225,7]
[330500944,1719520243316,-151.0,0.000225,7]
[330500946,1719520243326,-12118.18101911,0.000225,2]
[330500948,1719520243336,-257.731396,0.000225,7]
[330500949,1719520243345,-151.803834,0.000225,7]
[330500951,1719520243355,-257.731396,0.000225,7]
[330500953,1719520243365,-151.0,0.000225,7]
[330500955,1719520243375,-151.0,0.000225,7]
[330500957,1719520243385,-151.0,0.000225,7]
[330500958,1719520243394,-151.0,0.000225,7]
[330500959,1719520243405,-377.978712,0.000225,7]
[330500960,1719520243415,-151.0,0.000225,7]
[330500961,1719520243424,-377.978712,0.000225,7]
[330500962,1719520243437,-151.0,0.000225,7]
[330500963,1719520243447,-151.0,0.000225,7]
[330500964,1719520243457,-151.0,0.000225,7]
[330500965,1719520243466,-151.0,0.000225,7]
[330500966,1719520243475,-151.0,0.000225,7]
[330500967,1719520243485,-151.0,0.000225,7]
[330500968,1719520243495,-629.37956,0.000225,7]
[330500969,1719520243505,-151.0,0.000225,7]
[330500970,1719520243516,-187.114623,0.000225,7]
[330500971,1719520243526,-629.37956,0.000225,7]
[330500972,1719520243535,-151.0,0.000225,7]
[330500973,1719520243544,-297.163038,0.000225,7]
[330500974,1719520243554,-151.0,0.000225,7]
[330500975,1719520243564,-466.50158669,0.00022514,2]
[330500976,1719520243573,-171.99813846,0.00022524,2]
[330500977,1719520243584,-289.4508334,0.00022534,2]
[330500978,1719520243593,-289.4508334,0.00022578,2]
[330500979,1719520243603,-466.50158669,0.00022579,2]
[330500980,1719520243613,-150.47367995,0.00022587,2]
[330500981,1719520243622,-158.5976384,0.00022597,2]
[330500982,1719520243632,-403.86981609,0.00022608,2]
[330500983,1719520243641,-289.4508334,0.00022623,2]
[330500984,1719520243651,-220.18,0.0002263,3]
[330500985,1719520243660,-154.79485175,0.0002266,2]
[330500986,1719520243670,-289.4508334,0.00022667,2]
[330500987,1719520243680,-159.50187486,0.00022707,2]
[330500988,1719520243692,-289.4508334,0.00022712,2]
[330500989,1719520243705,-150.0,0.00022714,2]
[330500990,1719520243717,-150.0,0.00022731,2]
[330500991,1719520243726,-150.0,0.00022732,2]
[330500992,1719520243735,-150.0,0.00022736,2]
[330500993,1719520243745,-150.0,0.00022737,2]
[330500994,1719520243754,-150.0,0.00022742,2]
[330500995,1719520243763,-150.0,0.00022748,2]
[330500996,1719520243773,-466.50158669,0.00022748,2]
[330500997,1719520243783,-403.86981609,0.00022749,2]
[330500998,1719520243793,-150.0,0.00022754,2]
[330500999,1719520243802,-150.0,0.00022754,2]
[330501000,1719520243812,-289.4508334,0.00022756,2]
[330501001,1719520243821,-171.99813846,0.00022759,2]
[330501002,1719520243830,-150.0,0.0002276,2]
[330501003,1719520243839,-150.0,0.00022764,2]
[330501004,1719520243848,-150.0,0.00022765,2]
[330501005,1719520243858,-150.0,0.00022771,2]
[330501006,1719520243867,-150.0,0.00022774,2]
[330501007,1719520243876,-150.0,0.00022776,2]
[330501008,1719520243886,-150.0,0.0002278,2]
[330501009,1719520243895,-150.0,0.00022782,2]
[330501010,1719520243905,-273.63454689,0.00022784,2]
[330501011,1719520243915,-150.0,0.0002279,2]
[330501012,1719520243924,-150.0,0.00022794,2]
[330501013,1719520243935,-2298.22212729,0.00022795,2]
[330501014,1719520243944,-150.0,0.000228,2]
[330501015,1719520243953,-150.0,0.000228,2]
[330501016,1719520243963,-289.4508334,0.00022801,2]
[330501017,1719520243972,-1000.68871452,0.00022803,2]
[330501018,1719520243984,-150.0,0.00022804,2]
[330501019,1719520243993,-150.0,0.00022811,2]
[330501020,1719520244003,-150.0,0.00022817,2]
[330501021,1719520244012,-150.0,0.00022819,2]
[330501022,1719520244022,-150.0,0.00022821,2]
[330501023,1719520244031,-150.0,0.00022826,2]
[330501024,1719520244040,-150.0,0.00022827,2]
[330501025,1719520244050,-150.0,0.00022831,2]
[330501026,1719520244059,-171.99813846,0.00022835,2]
[330501027,1719520244069,-150.0,0.00022836,2]
[330501028,1719520244078,-150.0,0.00022839,2]
[330501029,1719520244087,-2298.22212727,0.00022843,2]
[330501030,1719520244097,-150.0,0.00022844,2]
[330501031,1719520244106,-289.4508334,0.00022845,2]
[330501032,1719520244116,-150.0,0.0002285,2]
[330501033,1719520244125,-150.0,0.0002286,2]
[330501034,1719520244134,-150.0,0.00022866,2]
[330501035,1719520244144,-150.0,0.00022869,2]
[330501036,1719520244153,-150.0,0.0002287,2]
[330501037,1719520244162,-150.0,0.0002287,2]
[330501038,1719520244172,-150.0,0.00022871,2]
[330501039,1719520244183,-150.0,0.00022875,2]
[330501040,1719520244193,-523.0,0.00022887,2]
[330501041,1719520244202,-150.0,0.00022888,2]
[330501042,1719520244212,-187.68301247,0.0002289,2]
[330501043,1719520244220,-150.0,0.0002289,2]
[330501044,1719520244230,-403.86981609,0.0002289,2]
[330501045,1719520244239,-289.4508334,0.0002289,2]
[330501046,1719520244248,-204408.0,0.0002289,2]
[330501047,1719520244258,-2298.22212727,0.0002289,2]
[330501048,1719520244267,-1000.0,0.0002289,2]
[330501049,1719520244276,-5000.0,0.0002289,2]
[330501050,1719520244285,-150.0,0.00022895,2]
[330501051,1719520244295,-490.0,0.000229,5]
[330501052,1719520244304,-995.26,0.000229,2]
[330501053,1719520244313,-150.0,0.00022908,2]
[330501054,1719520244322,-150.0,0.0002291,2]
[330501055,1719520244331,-150.0,0.00022913,2]
[330501056,1719520244340,-150.0,0.00022915,2]
[330501057,1719520244349,-150.0,0.00022915,2]
[330501058,1719520244358,-150.0,0.00022924,2]
[330501059,1719520244367,-150.0,0.00022924,2]
[330501060,1719520244376,-150.0,0.00022925,2]
[330501061,1719520244386,-150.0,0.00022948,2]
[330501062,1719520244395,-150.0,0.00022948,2]
[330501063,1719520244404,-150.0,0.0002295,2]
[330501064,1719520244413,-150.0,0.00022955,2]
[330501065,1719520244422,-150.0,0.00022961,2]
[330501066,1719520244432,-150.0,0.00022962,2]
[330501067,1719520244442,-150.0,0.00022967,2]
[330501068,1719520244451,-151.372515,0.00022975,7]
[330501069,1719520244464,-1198.36381826,0.00022978,2]
[330501070,1719520244475,-447.87214952,0.0002298,2]
[330501071,1719520244484,-550.27794371,0.0002298,2]
[330501072,1719520244493,-24630.6982386,0.0002298,2]
[330501073,1719520244502,-881.13956643,0.0002298,4]
[330501074,1719520244511,-581.13552663,0.0002298,2]
[330501075,1719520244520,-1502.58009,0.0002298,2]
[330501076,1719520244530,-150.0,0.00022981,2]
[330501077,1719520244539,-150.0,0.00022984,2]
[330501078,1719520244548,-217.90085819,0.00022984,2]
[330501079,1719520244558,-4906.2555477,0.00022984,2]
[330501080,1719520244567,-181.5840484,0.00022984,2]
[330501081,1719520244576,-150.0,0.00022985,2]
[330501082,1719520244585,-62960.17173432,0.0002299,7]
[330501083,1719520244595,-61322.68854165,0.0002299,5]
[330501084,1719520244605,-248212.43380585,0.0002299,5]
[330501091,1719520246166,-151.0,0.00022975,7]
[330501092,1719520246178,-151.0,0.00022975,7]
[330501093,1719520246188,-248.94354454,0.0002299,5]
[330501094,1719520246336,-4212.40073542,0.0002299,5]
[330501095,1719520246348,-2083.95,0.0002299,5]
[330501096,1719520246360,-2053.445,0.0002299,5]
[330501097,1719520246372,-4346.79,0.0002299,5]
[330501102,1719520394869,1000.0,0.00025906,120]
[330501109,1719520982031,200.0,0.00011045,30]
[330501110,1719520982065,333.26909051,0.00011045,30]
[330501111,1719521054018,242.47730526,0.00013388,2]
[330501113,1719521205230,1004.88306483,0.00011199,2]
[330501221,1719521432120,-1031.18335296,0.0001368,2]
[330501225,1719521432266,-270.03107511,0.0001368,2]
[330501226,1719521432278,-1054.71998718,0.0001368,2]
[330501227,1719521432376,-950.44308075,0.0001368,2]
[330501228,1719521432385,-363.2,0.00018574,2]
[330501229,1719521432396,-660.25476663,0.00018835,2]
[330501230,1719521432405,-201.9856429,0.00018864,2]
[330501231,1719521432415,-163.64202156,0.00018899,2]
[330501232,1719521432425,-263.44413224,0.00018899,2]
[330501233,1719521432435,-155.0,0.00018899,2]
[330501234,1719521432444,-242.09159978,0.00018899,2]
[330501235,1719521432454,-303.74358298,0.00018919,2]
[330501236,1719521432464,-281.16809237,0.00018919,2]
[330501237,1719521432475,-155.0,0.00018999,2]
[330501238,1719521432484,-155.0,0.00018999,2]
[330501240,1719521432494,-217.84498894,0.00018999,2]
[330501241,1719521432505,-196.22844649,0.00019069,2]
[330501242,1719521432515,-1628.33075206,0.00019177,2]
[330501243,1719521432526,-308.03328619,0.00019177,2]
[330501244,1719521432536,-226.97665617,0.0001935,2]
[330501245,1719521432550,-689.73177959,0.00019352,2]
[330501246,1719521432560,-438.1115069,0.00019354,2]
[330501247,1719521432570,-250.0,0.00019393,2]
[330501248,1719521432581,-177.2,0.00019506,2]
[330501249,1719521432591,-594.145,0.00019725,2]
[330501250,1719521432602,-291.98506278,0.00019725,2]
[330501251,1719521432613,-424.10473515,0.00019999,2]
[330501252,1719521432623,-250.0,0.00020087,2]
[330501253,1719521432634,-446.94,0.00020478,2]
[330501254,1719521432643,-250.0,0.00020488,2]
[330501255,1719521432654,-169.54,0.00020541,2]
[330501256,1719521432664,-200.0,0.00020541,2]
[330501257,1719521432674,-410.08,0.00020541,2]
[330501258,1719521432684,-763.2,0.00020541,2]
[330501259,1719521432695,-537.64551376,0.00020541,2]
[330501260,1719521432709,-241.19448624,0.00020541,2]
[330501261,1719521432720,-8740.78,0.00020706,2]
[330501262,1719521432731,-363.2,0.00020838,2]
[330501263,1719521432741,-11743.0,0.000209,5]
[330501264,1719521432752,-1250.0,0.00021,2]
[330501265,1719521432763,-531.0,0.000211,4]
[330501266,1719521432773,-13808.08512348,0.00021121,2]
[330501267,1719521432785,-24350.91487652,0.00021121,2]
[330501268,1719521432796,-345.0,0.00021121,2]
[330501269,1719521432807,-171.86,0.0002123,2]
[330501270,1719521432817,-217.26,0.00021612,3]
[330501271,1719521432827,-651.83,0.00021612,3]
[330501272,1719521432839,-28487.98504896,0.00021622,2]
[330501276,1719521438238,-264.40040348,0.00018899,2]
[330501277,1719521438249,-157.08319768,0.00018899,2]
[330501278,1719521438258,-1514.55727913,0.00021622,2]
[330501279,1719521438270,-1567.583997,0.00021622,2]
[330501280,1719521438346,-56615.79527491,0.00021622,2]
[330501281,1719521438355,-156.42,0.00021644,2]
[330501282,1719521438365,-158.1,0.00021644,2]
[330501284,1719521438375,-159.86,0.00021918,2]
[330501286,1719521438385,-154.77869222,0.00022006,2]
[330501288,1719521438394,-404.30137513,0.00022011,2]
[330501290,1719521438404,-154.79832461,0.00022037,2]
[330501291,1719521438414,-178.51357348,0.00022115,2]
[330501294,1719521438423,-382.53506032,0.00022116,2]
[330501296,1719521438433,-150.99915608,0.00022129,2]
[330501298,1719521438443,-553.97484106,0.00022202,2]
[330501299,1719521438452,-152.32275894,0.00022234,2]
[330501301,1719521438461,-166.66666666,0.00022262,2]
[330501303,1719521438471,-382.53506032,0.0002235,2]
[330501305,1719521438481,-154.80579417,0.00022352,2]
[330501307,1719521438491,-152.918136,0.00022361,2]
[330501309,1719521438501,-967.33242404,0.00022364,2]
[330501312,1719521438511,-150.47367995,0.00022477,2]
[330501314,1719521438521,-154.79832461,0.00022491,2]
[330501316,1719521438531,-1000.0,0.00022499,2]
[330501318,1719521438540,-2938.36970655,0.00022667,2]
[330501320,1719521438549,-178.51357348,0.00022709,2]
[330501322,1719521438559,-323.09585287,0.0002274,2]
[330501323,1719521438568,-181.26019552,0.0002277,2]
[330501325,1719521438578,-2938.36970655,0.00022794,2]
[330501328,1719521438587,-154.79832461,0.00022799,2]
[330501330,1719521438597,-382.53506032,0.000228,2]
[330501332,1719521438606,-500.0,0.00022806,2]
[330501334,1719521438616,-200.0,0.00022806,2]
[330501335,1719521438626,-1158.41835765,0.00022822,2]
[330501337,1719521438636,-664.81884781,0.00022861,2]
[330501338,1719521438645,-166.66666667,0.00022863,2]
[330501339,1719521438655,-220.18,0.00022877,3]
[330501340,1719521438666,-187.68301247,0.0002289,2]
[330501341,1719521438675,-323.09585287,0.0002289,2]
[330501342,1719521438685,-150.99915608,0.0002289,2]
[330501343,1719521438695,-2894.50833415,0.0002289,2]
[330501344,1719521438704,-271.40579368,0.0002289,2]
[330501345,1719521438714,-460.83864999,0.0002289,2]
[330501346,1719521438723,-1000.0,0.0002289,2]
[330501347,1719521438733,-9000.0,0.0002289,2]
[330501348,1719521438742,-302.62,0.00022892,2]
[330501349,1719521438752,-543.0,0.000229,11]
[330501350,1719521438762,-1001.9,0.000229,2]
[330501351,1719521438772,-152.918136,0.0002292,2]
[330501352,1719521438783,-2938.36970655,0.00022921,2]
[330501353,1719521438792,-382.53506032,0.00022923,2]
[330501354,1719521438802,-152.32275894,0.00022947,2]
[330501355,1719521438811,-150.5,0.0002296,30]
[330501356,1719521438821,-150.5,0.0002296,30]
[330501357,1719521438830,-1012.0,0.0002296,30]
[330501358,1719521438840,-150.5,0.0002296,30]
[330501359,1719521438849,-1012.0,0.0002296,30]
[330501360,1719521438858,-151.56,0.0002296,30]
[330501361,1719521438868,-180.62,0.0002296,30]
[330501362,1719521438877,-150.5,0.0002296,30]
[330501363,1719521438887,-1241.0,0.0002296,30]
[330501364,1719521438896,-150.5,0.0002296,30]
[330501365,1719521438906,-1241.0,0.0002296,30]
[330501366,1719521438916,-150.47367995,0.00022961,2]
[330501367,1719521438925,-152.918136,0.00022962,2]
[330501368,1719521438934,-150.5,0.0002297,30]
[330501369,1719521438943,-150.5,0.0002297,30]
[330501370,1719521438953,-151.35,0.0002297,30]
[330501371,1719521438962,-1012.0,0.0002297,30]
[330501372,1719521438971,-150.5,0.0002297,30]
[330501373,1719521438981,-1012.0,0.0002297,30]
[330501374,1719521438990,-1012.0,0.0002297,30]
[330501375,1719521439000,-1016.48,0.0002297,30]
[330501376,1719521439009,-150.5,0.0002297,30]
[330501377,1719521439019,-150.5,0.0002297,30]
[330501378,1719521439030,-150.5,0.0002297,30]
[330501379,1719521439040,-1241.0,0.0002297,30]
[330501380,1719521439050,-150.5,0.0002297,30]
[330501381,1719521439061,-1241.0,0.0002297,30]
[330501382,1719521439071,-166.0,0.0002297,30]
[330501383,1719521439081,-1241.0,0.0002297,30]
[330501384,1719521439092,-1249.62,0.0002297,30]
[330501385,1719521439106,-269.98,0.0002298,30]
[330501386,1719521439117,-154.3,0.0002298,30]
[330501387,1719521439127,-163.06,0.0002298,30]
[330501388,1719521439138,-150.5,0.0002298,30]
[330501389,1719521439148,-150.5,0.0002298,30]
[330501390,1719521439157,-150.5,0.0002298,30]
[330501391,1719521439167,-226.1,0.0002298,30]
[330501392,1719521439178,-151.47,0.0002298,30]
[330501393,1719521439189,-1012.0,0.0002298,30]
[330501394,1719521439199,-152.96,0.0002298,30]
[330501395,1719521439209,-172.46,0.0002298,30]
[330501396,1719521439218,-150.5,0.0002298,30]
[330501397,1719521439228,-1012.0,0.0002298,30]
[330501398,1719521439238,-219.18,0.0002298,30]
[330501399,1719521439248,-1012.0,0.0002298,30]
[330501400,1719521439258,-1012.0,0.0002298,30]
[330501401,1719521439268,-150.5,0.0002298,30]
[330501402,1719521439279,-150.5,0.0002298,30]
[330501403,1719521439289,-150.5,0.0002298,30]
[330501404,1719521439299,-1241.0,0.0002298,30]
[330501405,1719521439309,-150.5,0.0002298,30]
[330501406,1719521439319,-1241.0,0.0002298,30]
[330501407,1719521439329,-150.5,0.0002298,30]
[330501408,1719521439338,-1241.0,0.0002298,30]
[330501409,1719521439348,-1241.0,0.0002298,30]
[330501410,1719521439358,-33265.6512113,0.0002298,3]
[330501411,1719521439367,-434.52,0.00022982,3]
[330501412,1719521439377,-2830.0977662,0.00022984,2]
[330501413,1719521439388,-236.2870335,0.00022984,2]
[330501414,1719521439400,-151.3200403,0.00022984,2]
[330501415,1719521439410,-154.79832461,0.00022985,2]
[330501416,1719521439420,-1252.15007,0.00022985,2]
[330501417,1719521439431,-3153.30410214,0.00022986,2]
[330501418,1719521439441,-3152.6,0.00022986,2]
[330501419,1719521439450,-31480.08586717,0.0002299,7]
[330501420,1719521439460,-246407.79635945,0.0002299,5]
[330501421,1719521439473,-393.68764885,0.0002299,5]
[330501425,1719521440821,-769.57,0.000217,2]
[330501426,1719521440831,-352.99420003,0.0002299,5]
[330501427,1719521441066,-258.26659757,0.0002299,5]
[330501428,1719521441077,-1415.55102347,0.0002299,5]
[330501429,1719521441089,-1028.443,0.0002299,5]
[330501430,1719521441108,-11363.09570332,0.0002299,5]
[330501431,1719521441119,-8955.59627251,0.0002299,5]
[330501432,1719521441206,-6709.54640069,0.0002299,5]
[330501433,1719521441256,-21320.5176462,0.0002299,5]
[330501434,1719521441267,-901.46094364,0.0002299,5]
[330501435,1719521441279,-773.95903373,0.0002299,5]
[330501436,1719521441290,-738.7893376,0.0002299,5]
[330501437,1719521441389,-3950.40628861,0.0002299,5]
[330501438,1719521441402,-271.7099987,0.0002299,5]
[330501439,1719521441417,-3310.30765838,0.0002299,5]
[330501441,1719521441428,-2813.12587195,0.0002299,5]
[330501630,1719521443169,-226.97665617,0.0001935,2]
[330501633,1719521443178,-602.25885382,0.0002299,5]
[330501637,1719521443236,-450.0,0.0002299,5]
[330501641,1719521443341,-811.61990547,0.0002299,5]
[330501642,1719521443352,-364.52240511,0.0002299,5]
[330501643,1719521443371,-36443.5,0.0002299,5]
[330501729,1719521446193,-319.31715993,0.0002299,5]
[330501730,1719521446204,-3405.21499114,0.0002299,5]
[330501731,1719521446231,-455.26788648,0.0002299,5]
[330501732,1719521446265,-1062645.82631547,0.0002299,5]
[330501733,1719521446405,-1495.71770268,0.0002299,5]
[330501734,1719521446417,-1557.0,0.0002299,5]
[330501735,1719521446428,-297.4378362,0.0002299,5]
[330501736,1719521446440,-2910.55810647,0.0002299,5]
[330501737,1719521446451,-890.2,0.0002299,5]
[330501738,1719521446474,-769.1350846,0.0002299,5]
[330501739,1719521446485,-40099.50711587,0.0002299,5]
[330501740,1719521446496,-284.02268952,0.0002299,5]
[330501741,1719521446512,-331.48009675,0.0002299,5]
[330501742,1719521446524,-9280.32353471,0.0002299,5]
[330501743,1719521446535,-161556.0093751,0.0002299,5]
[330501744,1719521446547,-2356.43045917,0.0002299,5]
[330501745,1719521446558,-638.81145841,0.0002299,5]
[330501746,1719521446570,-2986.50532294,0.0002299,5]
[330501747,1719521446594,-4142.58559677,0.0002299,5]
[330501748,1719521446610,-734.02466279,0.0002299,5]
[330501749,1719521446622,-937.88882861,0.0002299,5]
[330501750,1719521446633,-1356.9970628,0.0002299,5]
[330501751,1719521446650,-440.29978316,0.0002299,5]
[330501752,1719521446661,-1898.23381044,0.0002299,5]
[330501753,1719521446672,-1664.98489113,0.0002299,5]
[330501754,1719521446685,-4378.22778671,0.0002299,5]